fUST/lending_fUST_20250616
["ID","MTS","AMOUNT","RATE_DAILY","PERIOD"]
[366146194,1750086116928,500.0,0.00023,120]
[366146195,1750086117680,500.0,0.00023,120]
[366146196,1750086118558,500.0,0.00023,120]
[366146197,1750086119384,500.0,0.00023,120]
[366146198,1750086120158,500.0,0.00023,120]
[366146199,1750086120971,500.0,0.00023,120]
[366146200,1750086121734,500.0,0.00023,120]
[366146201,1750086122504,500.0,0.00023,120]
[366146202,1750086123305,500.0,0.00023,120]
[366146203,1750086124087,500.0,0.00023,120]
[366146204,1750086124892,500.0,0.00023,120]
[366146205,1750086125674,500.0,0.00023,120]
[366146206,1750086126445,500.0,0.00023,120]
[366146207,1750086127219,500.0,0.00023,120]
[366146208,1750086128002,500.0,0.00023,120]
[366146209,1750086128769,500.0,0.00023,120]
[366146210,1750086129708,500.0,0.00023,120]
[366146211,1750086130480,500.0,0.00023,120]
[366146212,1750086131248,500.0,0.00023,120]
[366146213,1750086132041,500.0,0.00023,120]
[366146214,1750086132887,500.0,0.00023,120]
[366146215,1750086134076,500.0,0.00023,120]
[366146216,1750086134862,500.0,0.00023,120]
[366146217,1750086135637,500.0,0.00023,120]
[366146218,1750086136425,500.0,0.00023,120]
[366146219,1750086137205,500.0,0.00023,120]
[366146220,1750086137976,500.0,0.00023,120]
[366146221,1750086139043,500.0,0.00023,120]
[366146222,1750086139838,500.0,0.00023,120]
[366146223,1750086140611,500.0,0.00023,120]
[366146224,1750086141386,500.0,0.00023,120]
[366146226,1750086210748,200.0,0.00023897,120]
[366146227,1750086231093,150.0,0.00025012,60]
[366146228,1750086231961,150.0,0.00025012,90]
[366146233,1750086331550,200.0,0.00024177,120]
[366146238,1750086391321,200.0,0.00023922,120]
[366146239,1750086424199,1218.5198245,0.00017625,2]
[366146240,1750086424924,2000.0,0.00017625,120]
[366146242,1750086510736,200.0,0.0002379,120]
[366146243,1750086519248,3025.0,0.00024657,120]
[366146245,1750086531492,150.0,0.00025015,90]
[366146246,1750086536360,10000.0,0.00017625,2]
[366146247,1750086571345,200.0,0.00024053,120]
[366146249,1750086630762,200.0,0.00024209,120]
[366146321,1750086637148,-300.0,0.00018174,2]
[366146322,1750086637158,-1200.0,0.00018174,2]
[366146323,1750086637168,-1000.0,0.00018175,2]
[366146324,1750086637178,-300.0,0.00018175,2]
[366146325,1750086637187,-300.0,0.00018175,2]
[366146326,1750086637208,-300.0,0.00018175,2]
[366146327,1750086637221,-466.95894229,0.00018175,2]
[366146328,1750086637231,-416.71706057,0.00018175,2]
[366146329,1750086637242,-17882.42507725,0.00018176,2]
[366146330,1750086637256,-7017.57492275,0.00018176,2]
[366146331,1750086637267,-238.735223,0.00018177,2]
[366146332,1750086637277,-172.74237073,0.00018973,2]
[366146333,1750086637287,-500.0,0.00019072,2]
[366146334,1750086637298,-500.0,0.00019072,2]
[366146335,1750086637309,-500.0,0.00019072,2]
[366146336,1750086637319,-500.0,0.00019072,2]
[366146337,1750086637329,-500.0,0.00019072,2]
[366146338,1750086637339,-190.602838,0.00019072,2]
[366146339,1750086637349,-500.0,0.00019072,2]
[366146340,1750086637359,-45782.46191714,0.00019073,2]
[366146341,1750086637370,-166.6284359,0.00019075,2]
[366146342,1750086637380,-2452.1576562,0.00019078,2]
[366146343,1750086637390,-460.0,0.00019178,2]
[366146344,1750086637400,-440.0,0.00019178,2]
[366146345,1750086637410,-460.0,0.00019178,2]
[366146346,1750086637420,-408.98280923,0.00019178,2]
[366146347,1750086637430,-347.60761814,0.00019178,2]
[366146348,1750086637440,-460.0,0.00019178,2]
[366146349,1750086637451,-460.0,0.00019178,2]
[366146350,1750086637464,-460.0,0.00019178,2]
[366146351,1750086637475,-460.0,0.00019178,2]
[366146352,1750086637485,-460.0,0.00019178,2]
[366146353,1750086637495,-578.52,0.00019178,2]
[366146354,1750086637506,-460.0,0.00019178,2]
[366146355,1750086637516,-460.0,0.00019178,2]
[366146356,1750086637526,-193.32,0.00019178,2]
[366146358,1750086637535,-460.0,0.00019178,2]
[366146360,1750086637546,-460.0,0.00019178,2]
[366146361,1750086637556,-460.0,0.00019178,2]
[366146362,1750086637567,-460.0,0.00019178,2]
[366146363,1750086637576,-460.0,0.00019178,2]
[366146364,1750086637586,-460.0,0.00019178,2]
[366146365,1750086637596,-460.0,0.00019178,2]
[366146366,1750086637608,-460.0,0.00019178,2]
[366146367,1750086637618,-460.0,0.00019178,2]
[366146368,1750086637629,-460.0,0.00019178,2]
[366146369,1750086637639,-460.0,0.00019178,2]
[366146370,1750086637649,-1137.46,0.00019178,2]
[366146371,1750086637658,-460.0,0.00019178,2]
[366146372,1750086637668,-460.0,0.00019178,2]
[366146373,1750086637678,-460.0,0.00019178,2]
[366146374,1750086637688,-668.7,0.00019178,2]
[366146375,1750086637698,-460.0,0.00019178,2]
[366146376,1750086637708,-460.0,0.00019178,2]
[366146377,1750086637718,-541.78,0.00019178,2]
[366146378,1750086637728,-993.3,0.00019178,2]
[366146379,1750086637738,-460.0,0.00019178,2]
[366146380,1750086637748,-460.0,0.00019178,2]
[366146381,1750086637759,-460.0,0.00019178,2]
[366146382,1750086637769,-460.0,0.00019178,2]
[366146383,1750086637779,-460.0,0.00019178,2]
[366146384,1750086637789,-460.0,0.00019178,2]
[366146385,1750086637799,-460.0,0.00019178,2]
[366146386,1750086637809,-460.0,0.00019178,2]
[366146387,1750086637819,-460.0,0.00019178,2]
[366146388,1750086637833,-460.0,0.00019178,2]
[366146389,1750086637843,-460.0,0.00019178,2]
[366146390,1750086637854,-460.0,0.00019178,2]
[366146391,1750086637863,-491.98,0.00019178,2]
[366146392,1750086637873,-460.0,0.00019178,2]
[366146394,1750086637883,-460.0,0.00019178,2]
[366146395,1750086637893,-574.86,0.00019178,2]
[366146397,1750086638067,-460.0,0.00019178,2]
[366146398,1750086638078,-460.0,0.00019178,2]
[366146399,1750086638088,-460.0,0.00019178,2]
[366146400,1750086638098,-460.0,0.00019178,2]
[366146401,1750086638108,-460.0,0.00019178,2]
[366146402,1750086638118,-460.0,0.00019178,2]
[366146403,1750086638128,-250.0,0.00019178,2]
[366146404,1750086638138,-460.0,0.00019178,2]
[366146405,1750086638148,-1570.39,0.00019178,2]
[366146406,1750086638158,-609.66,0.00019178,2]
[366146407,1750086638168,-460.0,0.00019178,2]
[366146408,1750086638178,-460.0,0.00019178,2]
[366146409,1750086638188,-460.0,0.00019178,2]
[366146410,1750086638198,-1346.39,0.00019178,2]
[366146411,1750086638208,-460.0,0.00019178,2]
[366146412,1750086638218,-958.05,0.00019178,2]
[366146413,1750086638228,-460.0,0.00019178,2]
[366146414,1750086638238,-189.06793752,0.00019178,2]
[366146415,1750086638248,-460.0,0.00019178,2]
[366146416,1750086638258,-1000.0,0.00019178,2]
[366146417,1750086638268,-200.42370408,0.00019178,2]
[366146418,1750086638278,-1195.97,0.00019178,2]
[366146419,1750086638288,-460.0,0.00019178,2]
[366146420,1750086638298,-460.0,0.00019178,2]
[366146421,1750086638307,-460.0,0.00019178,2]
[366146422,1750086638318,-1424.61,0.00019178,2]
[366146423,1750086638328,-241.71298688,0.00019178,2]
[366146424,1750086638338,-100000.0,0.00019329,2]
[366146425,1750086638348,-460.0,0.00019452,4]
[366146426,1750086638359,-460.0,0.00019452,4]
[366146427,1750086638369,-201.89,0.00019452,4]
[366146428,1750086638380,-460.0,0.00019452,4]
[366146429,1750086638393,-460.0,0.00019452,2]
[366146430,1750086638404,-460.0,0.00019452,4]
[366146431,1750086638414,-460.0,0.00019452,4]
[366146432,1750086638424,-1137.46,0.00019452,4]
[366146433,1750086638434,-668.7,0.00019452,4]
[366146434,1750086638444,-460.0,0.00019452,4]
[366146435,1750086638454,-460.0,0.00019452,4]
[366146436,1750086638464,-541.78,0.00019452,4]
[366146437,1750086638475,-993.3,0.00019452,4]
[366146438,1750086638485,-460.0,0.00019452,4]
[366146439,1750086638494,-460.0,0.00019452,4]
[366146440,1750086638504,-460.0,0.00019452,4]
[366146441,1750086638514,-460.0,0.00019452,4]
[366146442,1750086638524,-460.0,0.00019452,4]
[366146443,1750086638534,-426.16,0.00019452,4]
[366146444,1750086638544,-460.0,0.00019452,4]
[366146445,1750086638554,-491.98,0.00019452,4]
[366146446,1750086638564,-460.0,0.00019452,4]
[366146447,1750086638574,-420.0,0.00019452,4]
[366146448,1750086638584,-574.86,0.00019452,4]
[366146449,1750086638594,-460.0,0.00019452,4]
[366146450,1750086638604,-460.0,0.00019452,4]
[366146451,1750086638614,-460.0,0.00019452,4]
[366146452,1750086638623,-460.0,0.00019452,4]
[366146453,1750086638634,-460.0,0.00019452,4]
[366146454,1750086638644,-1570.39,0.00019452,4]
[366146455,1750086638654,-609.66,0.00019452,4]
[366146456,1750086638663,-460.0,0.00019452,4]
[366146457,1750086638673,-1346.39,0.00019452,4]
[366146458,1750086638683,-958.05,0.00019452,4]
[366146459,1750086638692,-460.0,0.00019452,4]
[366146460,1750086638702,-200.0,0.00019452,4]
[366146461,1750086638711,-460.0,0.00019452,4]
[366146462,1750086638721,-1195.97,0.00019452,4]
[366146463,1750086638731,-460.0,0.00019452,4]
[366146464,1750086638741,-245.92680087,0.00019452,4]
[366146465,1750086638750,-460.0,0.00019452,2]
[366146466,1750086638760,-1424.61,0.00019452,4]
[366146467,1750086638769,-2452.15765619,0.00019569,2]
[366146468,1750086638779,-460.0,0.00019726,4]
[366146469,1750086638788,-461.775893,0.00019726,4]
[366146470,1750086638798,-460.0,0.00019726,4]
[366146471,1750086638808,-460.0,0.00019726,2]
[366146472,1750086638818,-460.0,0.00019726,4]
[366146473,1750086638827,-460.0,0.00019726,4]
[366146474,1750086638836,-1137.46,0.00019726,4]
[366146475,1750086638846,-668.7,0.00019726,4]
[366146476,1750086638856,-460.0,0.00019726,4]
[366146477,1750086638866,-541.78,0.00019726,4]
[366146478,1750086638876,-993.3,0.00019726,4]
[366146479,1750086638886,-460.0,0.00019726,4]
[366146480,1750086638896,-460.0,0.00019726,4]
[366146481,1750086638906,-460.0,0.00019726,4]
[366146482,1750086638916,-460.0,0.00019726,4]
[366146483,1750086638927,-309.763559,0.00019726,4]
[366146484,1750086638940,-460.0,0.00019726,4]
[366146485,1750086638950,-491.98,0.00019726,4]
[366146486,1750086638960,-574.86,0.00019726,4]
[366146487,1750086638970,-345.72,0.00019726,4]
[366146488,1750086638982,-460.0,0.00019726,4]
[366146489,1750086638991,-460.0,0.00019726,4]
[366146490,1750086639001,-460.58642977,0.00019726,4]
[366146491,1750086639011,-460.0,0.00019726,4]
[366146492,1750086639023,-1570.39,0.00019726,4]
[366146493,1750086639033,-609.66,0.00019726,4]
[366146494,1750086639042,-460.0,0.00019726,4]
[366146495,1750086639052,-1346.39,0.00019726,4]
[366146496,1750086639062,-958.05,0.00019726,4]
[366146497,1750086639071,-416.67,0.00019726,4]
[366146498,1750086639080,-460.0,0.00019726,4]
[366146499,1750086639089,-1195.97,0.00019726,4]
[366146500,1750086639098,-460.0,0.00019726,4]
[366146501,1750086639110,-460.0,0.00019726,2]
[366146502,1750086639119,-1424.61,0.00019726,4]
[366146503,1750086639128,-450.30901665,0.00019742,2]
[366146504,1750086639138,-500.0,0.00019824,2]
[366146505,1750086639148,-500.55593004,0.00019824,2]
[366146506,1750086639158,-500.0,0.00019824,2]
[366146507,1750086639167,-420.0,0.00019826,2]
[366146508,1750086639177,-420.0,0.00019827,2]
[366146509,1750086639187,-420.0,0.00019827,2]
[366146510,1750086639196,-338.0,0.00019827,2]
[366146511,1750086639205,-698.56,0.00019859,3]
[366146512,1750086639216,-500.0,0.00019869,2]
[366146513,1750086639226,-622.52428957,0.00019869,2]
[366146514,1750086639236,-612.18987166,0.00019869,2]
[366146515,1750086639246,-502.13328092,0.00019869,2]
[366146516,1750086639257,-500.0,0.00019907,2]
[366146517,1750086639266,-482.226222,0.00019907,2]
[366146518,1750086639276,-1680.0,0.00019924,2]
[366146519,1750086639286,-541.83808783,0.00019939,2]
[366146520,1750086639296,-500.0,0.00019939,2]
[366146521,1750086639318,-506.25474159,0.00019939,2]
[366146522,1750086639331,-500.0,0.00019939,2]
[366146523,1750086639341,-500.0,0.00019939,2]
[366146524,1750086639352,-504.97186885,0.00019939,2]
[366146525,1750086639363,-160.0,0.00019998,2]
[366146526,1750086639373,-783318.5355,0.00019999,2]
[366146527,1750086639384,-470.49,0.00019999,4]
[366146528,1750086639395,-460.0,0.0002,4]
[366146529,1750086639407,-460.0,0.0002,2]
[366146530,1750086639417,-460.0,0.0002,4]
[366146531,1750086639428,-467.5122473,0.0002,4]
[366146532,1750086639438,-1137.46,0.0002,4]
[366146533,1750086639448,-668.7,0.0002,4]
[366146534,1750086639459,-460.0,0.0002,4]
[366146535,1750086639469,-541.78,0.0002,4]
[366146536,1750086639480,-993.3,0.0002,4]
[366146538,1750086639490,-575.85,0.0002,4]
[366146540,1750086639501,-460.0,0.0002,4]
[366146542,1750086639512,-460.0,0.0002,4]
[366146544,1750086639523,-460.0,0.0002,4]
[366146546,1750086639533,-460.0,0.0002,4]
[366146548,1750086639543,-491.98,0.0002,4]
[366146550,1750086639553,-574.86,0.0002,4]
[366146551,1750086639563,-466.84,0.0002,4]
[366146552,1750086639573,-460.0,0.0002,4]
[366146553,1750086639583,-460.0,0.0002,4]
[366146554,1750086639594,-1570.39,0.0002,4]
[366146555,1750086639605,-609.66,0.0002,4]
[366146556,1750086639615,-460.0,0.0002,4]
[366146557,1750086639626,-1346.39,0.0002,4]
[366146558,1750086639636,-958.05,0.0002,4]
[366146559,1750086639646,-440.0,0.0002,4]
[366146561,1750086639657,-1195.97,0.0002,4]
[366146562,1750086639667,-460.0,0.0002,2]
[366146563,1750086639677,-1424.61,0.0002,4]
[366146564,1750086639688,-500.0,0.00020009,2]
[366146565,1750086639698,-500.0,0.00020009,2]
[366146566,1750086639708,-500.0,0.00020009,2]
[366146567,1750086639718,-500.0,0.00020053,2]
[366146568,1750086639728,-345.70626259,0.00020053,2]
[366146569,1750086639738,-611.5896609,0.00020053,2]
[366146570,1750086639748,-500.0,0.00020053,2]
[366146571,1750086639758,-500.0,0.00020053,2]
[366146572,1750086639768,-2452.15765619,0.0002006,2]
[366146573,1750086639779,-1961.70348391,0.000201,2]
[366146574,1750086639789,-1961.70348363,0.00020107,2]
[366146575,1750086639798,-504.24755457,0.00020127,2]
[366146576,1750086639808,-500.0,0.00020161,2]
[366146577,1750086639817,-500.0,0.00020161,2]
[366146578,1750086639828,-500.0,0.00020161,2]
[366146579,1750086639839,-502.88093826,0.00020161,2]
[366146580,1750086639849,-232.84,0.00020165,3]
[366146581,1750086639859,-314.0,0.00020263,3]
[366146582,1750086639869,-460.0,0.00020273,4]
[366146583,1750086639879,-460.0,0.00020273,2]
[366146584,1750086639890,-460.0,0.00020273,4]
[366146585,1750086639900,-1137.46,0.00020273,4]
[366146586,1750086639909,-470.49,0.00020273,4]
[366146588,1750086639925,-668.7,0.00020273,4]
[366146589,1750086639936,-460.0,0.00020273,4]
[366146591,1750086639948,-541.78,0.00020273,4]
[366146592,1750086639958,-993.3,0.00020273,4]
[366146594,1750086639968,-460.0,0.00020273,4]
[366146595,1750086639979,-460.0,0.00020273,4]
[366146596,1750086639988,-460.0,0.00020273,4]
[366146597,1750086639999,-360.0,0.00020273,4]
[366146599,1750086640009,-491.98,0.00020273,4]
[366146600,1750086640020,-574.86,0.00020273,4]
[366146601,1750086640030,-460.0,0.00020273,4]
[366146602,1750086640040,-460.0,0.00020273,4]
[366146603,1750086640050,-1570.39,0.00020273,4]
[366146604,1750086640060,-609.66,0.00020273,4]
[366146605,1750086640070,-460.0,0.00020273,4]
[366146606,1750086640080,-1346.39,0.00020273,4]
[366146607,1750086640090,-958.05,0.00020273,4]
[366146608,1750086640100,-1195.97,0.00020273,4]
[366146609,1750086640111,-460.0,0.00020273,2]
[366146610,1750086640121,-1424.61,0.00020273,4]
[366146611,1750086640131,-1961.70348363,0.00020314,3]
[366146612,1750086640142,-500.0,0.00020391,2]
[366146613,1750086640152,-500.0,0.00020391,2]
[366146614,1750086640162,-500.0,0.00020391,2]
[366146615,1750086640172,-511.68967332,0.00020391,2]
[366146616,1750086640182,-172.74237069,0.00020459,2]
[366146617,1750086640193,-362.05087146,0.00020487,2]
[366146618,1750086640203,-165.416,0.00020512,2]
[366146619,1750086640214,-1961.70348363,0.00020521,3]
[366146620,1750086640224,-207.769922,0.00020547,4]
[366146621,1750086640234,-460.0,0.00020547,2]
[366146622,1750086640245,-500.0,0.00020547,2]
[366146623,1750086640255,-400.94,0.00020547,4]
[366146624,1750086640266,-1137.46,0.00020547,4]
[366146625,1750086640276,-470.49,0.00020547,4]
[366146626,1750086640287,-668.7,0.00020547,4]
[366146627,1750086640297,-460.0,0.00020547,4]
[366146628,1750086640308,-541.78,0.00020547,4]
[366146629,1750086640318,-993.3,0.00020547,4]
[366146630,1750086640329,-460.0,0.00020547,4]
[366146631,1750086640339,-460.0,0.00020547,4]
[366146632,1750086640350,-460.0,0.00020547,4]
[366146633,1750086640364,-491.98,0.00020547,4]
[366146634,1750086640375,-574.86,0.00020547,4]
[366146635,1750086640385,-460.0,0.00020547,4]
[366146636,1750086640395,-460.0,0.00020547,4]
[366146637,1750086640406,-1570.39,0.00020547,4]
[366146638,1750086640416,-609.66,0.00020547,4]
[366146639,1750086640426,-460.0,0.00020547,4]
[366146640,1750086640437,-1346.39,0.00020547,4]
[366146641,1750086640446,-958.05,0.00020547,4]
[366146642,1750086640457,-1195.97,0.00020547,4]
[366146643,1750086640467,-460.0,0.00020547,2]
[366146644,1750086640477,-1424.61,0.00020547,4]
[366146645,1750086640487,-2452.15765619,0.0002055,2]
[366146646,1750086640497,-508.24194417,0.00020557,2]
[366146647,1750086640508,-12537.89035583,0.00020584,2]
[366146648,1750086640519,-424.54874296,0.00020584,2]
[366146649,1750086640530,-213.36025772,0.00020586,2]
[366146650,1750086640543,-835.67987521,0.00020586,2]
[366146651,1750086640553,-160.0,0.00020586,2]
[366146652,1750086640564,-160.0,0.00020586,2]
[366146653,1750086640574,-229.90125484,0.00020586,2]
[366146654,1750086640584,-845.47092152,0.00020586,2]
[366146655,1750086640594,-1577.54,0.00020611,2]
[366146656,1750086640604,-1961.70348363,0.00020728,3]
[366146657,1750086640614,-460.0,0.00020821,2]
[366146658,1750086640623,-1137.46,0.00020821,4]
[366146659,1750086640634,-470.49,0.00020821,4]
[366146660,1750086640643,-668.7,0.00020821,4]
[366146661,1750086640653,-460.0,0.00020821,4]
[366146662,1750086640663,-541.78,0.00020821,4]
[366146663,1750086640673,-993.3,0.00020821,4]
[366146664,1750086640683,-460.0,0.00020821,4]
[366146665,1750086640693,-460.0,0.00020821,4]
[366146666,1750086640703,-460.0,0.00020821,4]
[366146667,1750086640713,-491.98,0.00020821,4]
[366146668,1750086640723,-574.86,0.00020821,4]
[366146669,1750086640733,-255.48,0.00020821,4]
[366146670,1750086640743,-597.12,0.00020821,4]
[366146671,1750086640754,-1570.39,0.00020821,4]
[366146672,1750086640763,-609.66,0.00020821,4]
[366146673,1750086640773,-460.0,0.00020821,4]
[366146674,1750086640783,-1346.39,0.00020821,4]
[366146675,1750086640793,-958.05,0.00020821,4]
[366146676,1750086640803,-1195.97,0.00020821,4]
[366146677,1750086640947,-460.0,0.00020821,2]
[366146678,1750086640958,-1424.61,0.00020821,4]
[366146679,1750086640969,-1961.70348363,0.00020934,4]
[366146680,1750086640979,-2452.15765619,0.00021041,2]
[366146681,1750086640989,-460.0,0.00021095,2]
[366146682,1750086640999,-500.0,0.00021095,3]
[366146683,1750086641008,-1137.46,0.00021095,4]
[366146684,1750086641019,-470.49,0.00021095,4]
[366146685,1750086641029,-668.7,0.00021095,4]
[366146686,1750086641039,-587.22,0.00021095,4]
[366146687,1750086641049,-541.78,0.00021095,4]
[366146688,1750086641059,-993.3,0.00021095,4]
[366146689,1750086641069,-460.0,0.00021095,4]
[366146690,1750086641078,-460.0,0.00021095,4]
[366146691,1750086641088,-460.0,0.00021095,4]
[366146692,1750086641098,-491.98,0.00021095,4]
[366146693,1750086641108,-574.86,0.00021095,4]
[366146694,1750086641118,-1570.39,0.00021095,4]
[366146695,1750086641128,-609.66,0.00021095,4]
[366146696,1750086641137,-460.0,0.00021095,4]
[366146697,1750086641147,-1346.39,0.00021095,4]
[366146698,1750086641157,-958.05,0.00021095,4]
[366146699,1750086641167,-1195.97,0.00021095,4]
[366146700,1750086641177,-460.0,0.00021095,2]
[366146701,1750086641186,-1424.61,0.00021095,4]
[366146702,1750086641196,-5000.0,0.0002113,2]
[366146703,1750086641206,-151.3462781,0.0002113,2]
[366146704,1750086641215,-207.4,0.0002113,2]
[366146705,1750086641225,-1688.0,0.0002113,2]
[366146706,1750086641235,-500.0,0.0002113,2]
[366146707,1750086641244,-500.0,0.0002113,2]
[366146708,1750086641255,-500.0,0.0002113,2]
[366146709,1750086641264,-500.0,0.0002113,2]
[366146710,1750086641274,-500.0,0.0002113,2]
[366146711,1750086641285,-500.0,0.0002113,2]
[366146712,1750086641294,-500.0,0.0002113,2]
[366146713,1750086641304,-500.0,0.0002113,2]
[366146714,1750086641314,-500.0,0.0002113,2]
[366146715,1750086641325,-500.0,0.0002113,2]
[366146716,1750086641334,-500.0,0.0002113,2]
[366146717,1750086641344,-500.0,0.0002113,2]
[366146718,1750086641354,-500.0,0.0002113,2]
[366146719,1750086641365,-500.0,0.0002113,2]
[366146720,1750086641375,-500.0,0.0002113,2]
[366146721,1750086641385,-500.0,0.0002113,2]
[366146722,1750086641408,-500.0,0.0002113,2]
[366146723,1750086641419,-500.0,0.0002113,2]
[366146724,1750086641430,-500.0,0.0002113,2]
[366146725,1750086641441,-500.0,0.0002113,2]
[366146726,1750086641452,-500.0,0.0002113,2]
[366146727,1750086641463,-500.0,0.0002113,2]
[366146728,1750086641473,-500.0,0.0002113,2]
[366146729,1750086641483,-500.0,0.0002113,2]
[366146730,1750086641494,-500.0,0.0002113,2]
[366146731,1750086641504,-500.0,0.0002113,2]
[366146732,1750086641514,-500.0,0.0002113,2]
[366146733,1750086641524,-500.0,0.0002113,2]
[366146734,1750086641534,-500.0,0.0002113,2]
[366146735,1750086641544,-500.0,0.0002113,2]
[366146736,1750086641554,-20871.70715916,0.0002113,2]
[366146737,1750086641564,-1961.70348363,0.00021141,4]
[366146738,1750086641574,-1750.456,0.00021185,2]
[366146739,1750086641585,-1815.222872,0.0002124,2]
[366146740,1750086641595,-190.0,0.00021354,2]
[366146741,1750086641606,-160.0,0.00021368,2]
[366146742,1750086641616,-190.0,0.00021369,2]
[366146743,1750086641626,-460.0,0.00021369,2]
[366146744,1750086641637,-1137.46,0.00021369,4]
[366146745,1750086641647,-470.49,0.00021369,4]
[366146746,1750086641657,-668.7,0.00021369,4]
[366146747,1750086641667,-541.78,0.00021369,4]
[366146748,1750086641677,-993.3,0.00021369,4]
[366146749,1750086641687,-460.0,0.00021369,4]
[366146750,1750086641697,-460.0,0.00021369,4]
[366146751,1750086641707,-460.0,0.00021369,4]
[366146752,1750086641716,-491.98,0.00021369,4]
[366146753,1750086641727,-574.86,0.00021369,4]
[366146754,1750086641737,-1570.39,0.00021369,4]
[366146755,1750086641747,-609.66,0.00021369,4]
[366146756,1750086641756,-460.0,0.00021369,4]
[366146757,1750086641766,-1346.39,0.00021369,4]
[366146758,1750086641776,-958.05,0.00021369,4]
[366146759,1750086641786,-1195.97,0.00021369,4]
[366146760,1750086641796,-590.18,0.00021369,2]
[366146761,1750086641806,-1424.61,0.00021369,4]
[366146762,1750086641817,-190.0,0.00021405,2]
[366146763,1750086641826,-190.0,0.00021437,2]
[366146764,1750086641836,-465.68,0.00021535,3]
[366146765,1750086641846,-190.0,0.00021544,2]
[366146766,1750086641856,-3155.08,0.00021592,2]
[366146767,1750086641867,-587.0,0.00021629,2]
[366146768,1750086641876,-587.0,0.0002163,2]
[366146769,1750086641886,-460.0,0.00021643,2]
[366146770,1750086641896,-500.0,0.00021643,4]
[366146771,1750086641906,-1137.46,0.00021643,4]
[366146772,1750086641915,-470.49,0.00021643,4]
[366146773,1750086641925,-668.7,0.00021643,4]
[366146774,1750086641935,-541.78,0.00021643,4]
[366146775,1750086641947,-993.3,0.00021643,4]
[366146776,1750086641957,-460.0,0.00021643,4]
[366146777,1750086641967,-460.0,0.00021643,4]
[366146778,1750086641977,-460.0,0.00021643,4]
[366146779,1750086641988,-491.98,0.00021643,4]
[366146780,1750086641998,-574.86,0.00021643,4]
[366146781,1750086642008,-1570.39,0.00021643,4]
[366146782,1750086642023,-609.66,0.00021643,4]
[366146783,1750086642034,-460.0,0.00021643,4]
[366146784,1750086642044,-1346.39,0.00021643,4]
[366146785,1750086642054,-958.05,0.00021643,4]
[366146786,1750086642064,-1195.97,0.00021643,4]
[366146787,1750086642075,-1424.61,0.00021643,4]
[366146788,1750086642085,-5000.0,0.00021678,2]
[366146789,1750086642095,-525.0,0.00021841,2]
[366146790,1750086642105,-500.0,0.00021917,2]
[366146791,1750086642115,-460.0,0.00021917,2]
[366146792,1750086642125,-500.0,0.00021917,2]